bitfinex/quotes_ETHUSD_20250622
["timestamp","ask_amount","ask_price","bid_price","bid_amount"]
[1750605917711,2.90735499,2191.9,2191.8,0.38086623]
[1750605917915,2.9073455,2191.9,2191.8,0.83049534]
[1750605918116,2.9073455,2191.9,2191.2,2.83366901]
[1750605918312,6.33417494,2192.2,2191.3,0.66432003]
[1750605918542,6.33417494,2192.2,2191.5,0.55]
[1750605918543,0.2212894,2192.1,2191.5,0.55]
[1750605918753,0.2212894,2192.0,2191.6,0.42651515]
[1750605918909,8.0293373,2192.4,2191.8,10.0]
[1750605919244,8.0293373,2192.4,2192.2,15.11162758]
[1750605919245,0.22129286,2192.3,2192.2,15.11162758]
[1750605919452,6.33417494,2193.0,2192.5,4.56100342]
[1750605919606,8.80140142,2193.5,2192.5,4.56100342]
[1750605919607,0.2213119,2192.9,2192.6,10.93072726]
[1750605919943,6.37979482,2193.8,2192.9,10.0]
[1750605920148,0.22069594,2193.7,2193.0,3.231]
[1750605920449,0.22055612,2193.6,2193.0,3.61165782]
[1750605920649,0.22055612,2193.5,2193.1,1.36116578]
[1750605920811,0.22055612,2193.4,2192.6,10.0]
[1750605921146,0.22055612,2193.3,2192.6,10.0]
[1750605921347,0.22055612,2193.2,2192.7,0.55]
[1750605921536,0.22055559,2193.1,2192.7,0.55]
[1750605921710,0.22055559,2193.0,2192.8,1.51107246]
[1750605922047,0.22055559,2192.9,2192.8,2.06107246]
[1750605922209,6.33417494,2193.7,2192.8,2.06107246]
[1750605922417,4.77932283,2193.6,2192.8,1.51107246]
[1750605922605,0.22055501,2193.5,2192.8,1.51107246]
[1750605922843,0.22055501,2193.4,2192.8,1.51107246]
[1750605923010,0.22055501,2193.3,2192.6,10.0]
[1750605923209,0.22055501,2193.2,2192.7,0.04559373]
[1750605923444,0.22055501,2193.1,2192.6,10.0]
[1750605923608,0.22055501,2193.0,2192.6,10.0]
[1750605923811,0.22055501,2192.9,2192.6,1.47868047]
[1750605924145,0.22055501,2192.8,2192.5,4.78680472]
[1750605924445,0.22055501,2192.7,2192.5,4.78680472]
[1750605924638,0.22055501,2192.6,2192.5,4.78680472]
[1750605924824,0.22055501,2192.6,2192.5,1.55480472]
[1750605925155,0.22055501,2192.6,2192.2,14.38630046]
[1750605925156,0.2197874,2192.6,2192.2,14.38630046]
[1750605925351,0.2197874,2192.5,2192.2,10.942]
[1750605925521,0.2197874,2192.4,2192.0,3.233]
[1750605925721,0.2197874,2192.3,2192.0,7.795039]
[1750605925937,0.21978439,2192.2,2192.0,7.795039]
[1750605926131,4.60565954,2193.0,2192.0,7.795039]
[1750605926330,4.77995778,2192.9,2192.0,3.233]
[1750605926531,4.60567019,2193.0,2192.1,10.0]
[1750605926854,0.21924875,2192.9,2192.0,8.25221132]
[1750605927028,4.56017657,2192.9,2192.1,10.0]
[1750605927228,0.21911794,2192.8,2192.1,10.0]
[1750605927444,4.60563572,2193.0,2192.1,10.0]
[1750605927445,0.21911794,2192.7,2192.2,1.82520751]
[1750605927627,4.56018223,2192.9,2192.2,1.82520751]
[1750605927628,0.21911794,2192.6,2192.2,1.82520751]
[1750605927833,0.21911794,2192.5,2192.2,1.82520751]
[1750605928029,0.21911794,2192.4,2192.2,1.82520751]
[1750605928233,0.21911794,2192.3,2192.2,1.82520751]
[1750605928437,0.21899588,2192.3,2192.2,1.82520751]
[1750605928744,0.21899588,2192.3,2192.0,3.69019239]
[1750605928745,0.21888286,2192.3,2192.0,3.69019239]
[1750605929061,0.21888286,2192.2,2192.0,0.45719239]
[1750605929261,0.2188811,2192.1,2191.9,0.9316]
[1750605929484,0.21887851,2192.0,2191.9,0.9316]
[1750605929622,0.21887851,2192.0,2191.9,6.04373236]
[1750605929823,14.00507459,2193.0,2192.1,10.0]
[1750605930053,4.74847252,2192.9,2192.1,10.0]
[1750605930272,4.70306345,2192.8,2191.9,8.4277712]
[1750605930474,0.14267308,2192.7,2192.1,4.56180825]
[1750605930678,0.14267308,2192.6,2192.3,10.0]
[1750605930826,0.14266962,2192.5,2192.4,0.04560343]
[1750605931024,0.14266798,2192.5,2192.4,0.04560343]
[1750605931325,0.14266798,2192.5,2192.0,19.433]
[1750605931326,0.14266798,2192.5,2192.1,4.60734119]
[1750605931529,4.55997536,2193.0,2192.1,10.04560145]
[1750605931530,0.14266798,2192.4,2192.1,10.04560145]
[1750605931761,4.55997536,2193.0,2192.3,10.0]
[1750605931960,0.14267521,2192.9,2192.4,0.04560125]
[1750605932160,0.14267521,2192.8,2192.5,10.0]
[1750605932324,1.1139,2193.1,2192.6,0.04560087]
[1750605932325,0.14267521,2192.7,2192.6,0.04560087]
[1750605932539,0.14267373,2192.7,2192.0,4.56197782]
[1750605932785,4.5605874,2192.7,2192.0,10.64917614]
[1750605932983,0.14268715,2192.6,2192.0,10.64917614]
[1750605933200,0.14268715,2192.5,2192.3,10.0]
[1750605933368,5.67379668,2193.1,2192.4,0.04560672]
[1750605933369,4.56032273,2192.9,2192.4,0.04560672]
[1750605933563,4.70308018,2192.8,2192.4,0.04560672]
[1750605933768,4.70340097,2192.7,2192.0,15.21109841]
[1750605933977,0.14268382,2192.6,2192.0,14.56192227]
[1750605934203,0.14268361,2192.5,2192.0,14.56192227]
[1750605934395,0.14268361,2192.4,2192.0,14.56192227]
[1750605934602,0.14268361,2192.3,2192.1,4.56176375]
[1750605934818,0.04561988,2192.8,2192.7,4.5605874]
[1750605935118,1.0347,2193.5,2192.8,0.04559769]
[1750605935265,1.0347,2193.5,2192.2,24.14252781]
[1750605935266,0.14265979,2193.4,2192.2,9.373]
[1750605935469,0.14265979,2193.4,2191.9,19.38331141]
[1750605935470,4.56008888,2193.0,2192.0,10.55]
[1750605935824,4.55954769,2193.2,2192.2,14.56158422]
[1750605935825,1.1001,2192.8,2192.2,14.56158422]
[1750605936023,0.14267957,2192.7,2192.0,10.0]
[1750605936169,0.14267957,2192.6,2192.2,10.0]
[1750605936374,5.66048407,2192.8,2192.2,10.0]
[1750605936375,0.14267957,2192.5,2192.2,10.0]
[1750605936668,5.6605795,2192.8,2192.2,10.0]
[1750605936885,4.7033157,2192.7,2192.2,10.0]
[1750605937081,4.56062462,2192.7,2192.2,10.0]
[1750605937279,0.14269401,2192.6,2192.0,14.56196164]
[1750605937511,0.14269466,2192.5,2192.2,4.56160413]
[1750605937811,0.14269466,2192.4,2191.9,10.4481836]
[1750605938018,4.60624334,2192.7,2191.9,0.4481836]
[1750605938019,0.14269466,2192.3,2191.9,0.4481836]
[1750605938181,1.1001,2192.1,2191.9,0.4481836]
[1750605938382,0.14272377,2192.0,2191.7,10.0]
[1750605938570,0.14272377,2191.9,2191.4,4.56317164]
[1750605938770,0.14272377,2191.8,2191.1,8.73668678]
[1750605939019,0.14273637,2191.7,2191.6,4.56287643]
[1750605939270,0.14272921,2191.7,2191.6,14.56287643]
[1750605939480,0.14272912,2191.7,2191.6,10.45142819]
[1750605939705,0.14272912,2191.7,2191.6,15.01428263]
[1750605939904,0.14272912,2191.7,2191.6,17.52201546]
[1750605940215,6.33417494,2192.3,2192.2,4.56162758]
[1750605940439,0.1426847,2192.3,2192.2,14.56162758]
[1750605940767,6.40879889,2192.3,2192.2,14.56162758]
[1750605941003,6.26611419,2192.3,2192.2,14.56162758]
[1750605941405,6.26611419,2192.3,2192.2,10.99513857]
[1750605941605,8.80140142,2192.8,2192.4,4.56103269]
[1750605941779,6.28104916,2192.5,2192.4,4.56103269]
[1750605942810,8.80140142,2192.8,2192.7,4.5605874]
[1750605942968,6.29841098,2192.8,2192.7,5.15618366]
[1750605943173,6.29841098,2192.8,2192.7,14.3905874]
[1750605943369,11.44182185,2193.3,2193.1,4.55959427]
[1750605943605,11.44182185,2193.3,2192.9,10.0]
[1750605943802,11.44182185,2193.3,2193.2,4.55954769]
[1750605943994,20.49236001,2193.3,2193.2,4.55954769]
[1750605944173,9.05053816,2193.3,2193.2,4.55954769]
[1750605944396,9.05053816,2193.3,2193.1,4.55964953]
[1750605944708,1.3409,2193.5,2193.1,4.55964953]
[1750605945007,9.07289856,2193.2,2193.1,4.55964953]
[1750605945194,9.07289856,2193.2,2192.8,10.0]
[1750605945511,9.07289856,2193.2,2193.0,10.0]
[1750605945673,9.07289856,2193.2,2193.0,14.55977376]
[1750605946005,9.07289856,2193.2,2193.1,4.55975559]
[1750605946372,9.07289856,2193.2,2193.1,16.4717263]
[1750605946576,9.07289856,2193.4,2193.3,14.5593398]
[1750605947276,9.07289856,2193.7,2193.1,6.4717263]
[1750605947474,6.35090333,2193.2,2193.1,4.55975559]
[1750605947793,11.44182185,2193.5,2192.9,4.5600873]
[1750605948114,11.44182185,2193.5,2192.2,1.3591]
[1750605948115,13.6322628,2193.3,2192.3,16.90937954]
[1750605948324,6.35302195,2192.8,2192.7,4.5605874]
[1750605949107,1.3217,2192.9,2191.7,1.3591]
[1750605949308,6.35462603,2192.5,2191.8,10.0456121]
[1750605949481,6.35462603,2192.5,2191.8,10.0]
[1750605949686,9.207,2192.8,2192.0,10.0]
[1750605949687,6.35462603,2192.4,2192.0,10.0]
[1750605949925,6.35462603,2192.4,2191.8,4.56231165]
[1750605950221,7.67632603,2192.2,2191.7,4.56254016]
[1750605950536,6.35462603,2191.9,2190.8,1.3977]
[1750605950687,4.56279908,2191.7,2191.1,10.0]
[1750605950888,6.35462603,2191.4,2191.0,10.0]
[1750605951087,6.40024591,2191.4,2190.5,0.005]
[1750605951325,6.40024591,2191.4,2190.5,0.46885728]
[1750605951326,6.35462603,2191.2,2190.5,0.46885728]
[1750605951494,1.3307,2191.1,2190.6,4.56495937]
[1750605951696,6.35462603,2190.9,2190.5,0.005]
[1750605952008,0.04561988,2190.8,2190.5,0.005]
[1750605952211,15.55562603,2190.7,2190.5,0.005]
[1750605952389,21.14856803,2190.7,2190.5,0.005]
[1750605952723,4.56537618,2190.4,2190.3,0.2268913]
[1750605952908,4.61099606,2190.4,2190.3,0.2268913]
[1750605953229,9.07289856,2190.7,2190.3,0.6795196]
[1750605953523,13.85816674,2191.0,2190.4,10.0]
[1750605953722,13.85816674,2191.0,2190.0,3.029]
[1750605953723,6.38331272,2190.9,2190.2,4.56578654]
[1750605953886,6.38331272,2190.9,2190.3,0.0456468]
[1750605954081,6.38331272,2190.9,2190.1,4.56587236]
[1750605954315,6.38331272,2190.9,2190.2,0.45121327]
[1750605954316,1.3307,2190.8,2190.2,0.45121327]
[1750605954518,10.6247,2190.8,2190.3,4.56558462]
[1750605954719,10.6247,2190.8,2190.4,0.04564928]
[1750605954720,1.3307,2190.8,2190.4,0.04564928]
[1750605954881,1.3307,2190.8,2190.3,0.50167979]
[1750605954882,6.33769284,2191.0,2190.3,0.50167979]
[1750605955087,16.95739284,2191.3,2190.9,4.56420882]
[1750605955324,0.04561988,2191.2,2190.5,4.56508115]
[1750605955507,4.60946686,2191.2,2190.5,4.56508115]
[1750605955918,0.04561988,2191.2,2190.6,4.56493757]
[1750605956095,0.04561988,2191.2,2190.6,4.56488419]
[1750605956432,1.3307,2191.3,2191.1,4.56379558]
[1750605956633,1.3307,2191.3,2191.1,5.02507797]
[1750605956798,1.3307,2191.3,2191.2,4.56370938]
[1750605956998,1.4068,2191.7,2191.2,0.04563304]
[1750605957199,1.4068,2191.7,2191.6,4.56287643]
[1750605957705,9.267,2192.0,2191.7,4.56254754]
[1750605957914,9.267,2192.0,2191.8,4.56245151]
[1750605958235,1.4068,2192.1,2191.7,4.56258729]
[1750605958435,10.6598,2192.1,2191.7,4.56258729]
[1750605958738,4.56245771,2191.9,2191.3,4.56342766]
[1750605958939,0.04561988,2191.8,2191.3,4.56342766]
[1750605959244,0.04561988,2191.8,2191.1,4.56386452]
[1750605959245,9.25,2191.7,2191.2,4.56368785]
[1750605959430,9.25,2191.7,2191.2,4.56370938]
[1750605959826,9.25,2191.7,2191.3,4.56347814]
[1750605960001,9.25,2191.7,2191.2,4.5636158]
[1750605960513,9.25,2191.7,2190.9,4.56430678]
[1750605960514,5.86423185,2191.5,2190.9,4.56430678]
[1750605960710,4.60891653,2191.4,2190.8,4.564442]
[1750605960910,9.229,2191.3,2190.5,4.56508174]
[1750605961244,10.523,2191.5,2190.6,0.04564077]
[1750605961412,15.56169284,2191.7,2191.4,4.56316671]
[1750605961605,9.224,2191.7,2191.3,4.56347922]
[1750605962008,9.224,2191.7,2191.5,4.56296776]
[1750605962227,9.224,2191.7,2190.7,10.0]
[1750605962542,9.224,2191.7,2191.1,4.5638008]
[1750605962842,9.224,2191.7,2191.3,4.56339357]
[1750605963144,9.224,2191.7,2191.3,4.563364]
[1750605963313,9.215,2191.7,2190.8,7.04136478]
[1750605963702,9.215,2191.7,2190.8,2.47695278]
[1750605963910,4.56299095,2191.6,2190.9,5.81201543]
[1750605964105,0.04561988,2191.6,2190.6,10.0]
[1750605964333,0.04561988,2191.6,2190.5,9.01579029]
[1750605964334,9.193,2191.6,2191.2,4.56354643]
[1750605964528,9.193,2191.6,2191.1,4.56381689]
[1750605964728,9.193,2191.6,2190.6,0.55]
[1750605964934,14.76952781,2191.3,2190.4,0.45189584]
[1750605965134,14.76952781,2191.3,2189.7,0.46665143]
[1750605965135,1.301,2190.4,2189.7,0.46665143]
[1750605965441,4.56694717,2189.7,2189.0,4.5681525]
[1750605965640,19.33479199,2190.5,2188.8,0.45221562]
[1750605965641,9.203,2189.6,2188.8,0.45221562]
[1750605965847,9.203,2189.6,2188.4,4.56951104]
[1750605965848,13.532,2189.5,2188.4,4.56951104]
[1750605966007,13.532,2189.5,2188.1,0.36545027]
[1750605966008,0.04561988,2189.4,2188.1,0.2268913]
[1750605966208,12.231,2189.3,2188.1,0.2268913]
[1750605966407,0.69041111,2189.4,2188.1,0.69039061]
[1750605966408,0.04561988,2189.2,2188.1,0.69039061]
[1750605966639,9.202,2189.1,2188.1,0.2268913]
[1750605966849,1.301,2188.7,2188.2,4.56995594]
[1750605967152,1.301,2188.7,2188.1,0.2268913]
[1750605967310,1.301,2189.1,2188.3,4.56975734]
[1750605967510,0.23824758,2189.6,2188.1,0.2268913]
[1750605967511,1.301,2189.5,2188.4,15.03103552]
[1750605967810,0.23824758,2189.6,2189.5,14.56725279]
[1750605968159,0.23824758,2189.6,2188.9,1.4197]
[1750605968355,1.34661988,2189.5,2188.2,1.4197]
[1750605968641,10.509,2189.5,2189.1,4.56794043]
[1750605968843,10.509,2189.5,2188.5,0.55]
[1750605969146,10.509,2189.5,2188.4,0.46735938]
[1750605969147,10.509,2189.5,2188.8,4.5685406]
[1750605969311,0.04561988,2189.4,2188.9,10.0]
[1750605969512,0.04561988,2189.4,2188.2,5.98954322]
[1750605969737,1.301,2189.5,2188.3,0.04568294]
[1750605969936,0.23824758,2189.6,2188.6,0.55]
[1750605970346,0.23824758,2189.6,2188.2,4.91508049]
[1750605970347,1.4007,2189.4,2188.3,4.56975734]
[1750605970550,1.11105187,2189.3,2188.6,4.56911503]
[1750605970725,0.04561988,2189.3,2188.5,4.56933973]
[1750605971059,0.04561988,2189.3,2188.6,10.0]
[1750605971364,9.208,2189.2,2188.7,4.56889392]
[1750605971525,9.195,2189.2,2188.7,4.56873608]
[1750605971726,9.195,2189.2,2188.4,10.64528378]
[1750605971946,9.195,2189.2,2188.5,1.06452838]
[1750605972267,9.195,2189.2,2188.6,10.0]
[1750605972561,9.195,2189.2,2188.7,4.56891964]
[1750605973064,1.4007,2189.4,2189.0,4.56811598]
[1750605973236,15.14816911,2189.4,2188.6,10.0]
[1750605973435,10.5807,2189.4,2188.7,1.56338189]
[1750605973637,1.4007,2189.4,2188.8,0.04567842]
[1750605973864,10.5677,2189.4,2188.9,4.56848031]
[1750605974158,10.5677,2189.4,2188.8,4.56867069]
[1750605974337,10.5677,2189.4,2188.7,1.56338189]
[1750605974659,15.1301898,2189.4,2188.7,4.56879178]
[1750605974877,10.5627,2189.4,2188.8,4.56871316]
[1750605975244,0.04561988,2189.3,2188.6,10.0]
[1750605975546,0.04561988,2189.3,2188.5,10.0]
[1750605975746,4.56828438,2189.1,2188.4,0.64528378]
[1750605975938,4.56918857,2188.6,2188.1,0.2268913]
[1750605976263,9.20161988,2188.5,2188.1,0.2268913]
[1750605976459,10.971,2189.3,2188.1,0.2268913]
[1750605976660,4.5683738,2189.0,2188.1,4.79703704]
[1750605976965,9.20461988,2189.2,2188.1,0.2268913]
[1750605976966,4.61413006,2188.9,2188.1,0.2268913]
[1750605977162,4.56892219,2188.7,2188.1,0.2268913]
[1750605977482,0.46141301,2188.8,2188.1,0.2268913]
[1750605977483,1.4223,2188.5,2188.1,0.2268913]
[1750605977767,1.4223,2188.9,2188.1,0.2268913]
[1750605977969,1.4223,2188.9,2188.2,0.04569381]
[1750605978128,0.04561988,2188.8,2188.1,0.2268913]
[1750605978329,1.4223,2188.9,2188.1,11.72653321]
[1750605978628,1.4223,2188.9,2188.4,4.5695018]
[1750605978831,5.02667343,2189.7,2188.1,11.72653321]
[1750605978832,1.4223,2189.3,2188.5,0.04568503]
[1750605979033,1.4223,2189.3,2188.4,24.76952781]
[1750605979034,10.5953,2189.3,2188.4,24.76952781]
[1750605979339,1.4223,2189.6,2188.7,14.76952781]
[1750605979653,1.46791988,2189.6,2189.1,4.56794969]
[1750605979825,1.46791988,2189.6,2188.8,1.53195278]
[1750605979826,1.4223,2189.6,2189.2,0.04567354]
[1750605980028,1.70202751,2189.9,2189.2,0.46467593]
[1750605980227,1.70202751,2189.9,2189.8,4.56662708]
[1750605980667,1.70202751,2189.9,2189.8,4.61228794]
[1750605980879,0.04561988,2190.3,2189.8,0.91791019]
[1750605981027,1.3837,2190.5,2189.8,0.91791019]
[1750605981028,1.3837,2190.5,2190.3,4.56546062]
[1750605981227,1.3837,2190.8,2190.4,4.56537618]
[1750605981461,3.001,2191.4,2190.5,0.04564537]
[1750605981462,1.3837,2191.1,2190.5,0.04564537]
[1750605981850,1.3837,2191.5,2191.0,4.56412596]
[1750605982035,1.3837,2191.5,2190.7,14.76952781]
[1750605982237,0.04561988,2191.4,2190.8,1.47695278]
[1750605982426,0.04561988,2191.4,2190.3,0.55]
[1750605982427,0.04561988,2191.4,2190.4,17.77052781]
[1750605982625,0.04561988,2191.4,2190.5,10.0]
[1750605982824,1.3837,2191.5,2190.6,0.04563871]
[1750605983028,1.3837,2191.5,2190.8,14.76952781]
[1750605983261,1.3837,2191.5,2191.2,4.56365154]
[1750605983464,1.3837,2191.5,2190.9,0.04563389]
[1750605983465,1.3837,2191.5,2190.9,4.56427071]
[1750605983635,1.3837,2191.5,2190.1,1.4761]
[1750605983837,4.5635148,2191.3,2190.6,4.56483142]
[1750605984027,0.50653335,2191.2,2190.1,4.4771]
[1750605984229,4.5640535,2191.1,2190.4,4.56524361]
[1750605984563,1.6,2191.3,2190.7,4.56470086]
[1750605984765,6.20912185,2191.3,2190.6,4.56487658]
[1750605985060,1.64561988,2191.3,2190.5,4.56516776]
[1750605985261,10.5107,2191.5,2190.9,4.56419482]
[1750605985643,1.3837,2191.5,2191.1,14.76952781]
[1750605985830,4.6059993,2192.8,2191.2,1.52412901]
[1750605986170,0.04561988,2192.7,2191.2,0.55]
[1750605986467,4.56147541,2192.3,2191.5,4.56307268]
[1750605986631,4.56220592,2192.0,2191.2,4.56358471]
[1750605986838,0.04561988,2191.9,2191.3,4.60900722]
[1750605987129,0.04561988,2191.9,2191.3,0.04562895]
[1750605987337,4.56177238,2192.2,2191.5,4.56295443]
[1750605987556,4.56206384,2192.0,2191.3,4.56338112]
[1750605987742,0.04561988,2192.1,2191.5,4.56305764]
[1750605987937,0.04561988,2192.1,2191.4,4.56323051]
[1750605988157,4.60753184,2192.1,2191.5,4.56304943]
[1750605988560,4.60748422,2192.1,2191.5,4.56304943]
[1750605988768,1.4219,2192.0,2191.4,4.56321422]
[1750605989267,1.4219,2192.0,2191.5,4.56294064]
[1750605989469,1.4219,2192.0,2191.5,0.91262103]
[1750605989768,5.98415091,2192.0,2191.1,14.76952781]
[1750605989945,0.04561988,2191.9,2191.4,4.56316298]
[1750605990144,0.04561988,2191.9,2191.4,4.56323149]
[1750605990458,4.60789905,2191.9,2191.1,17.76952781]
[1750605990654,0.04561988,2191.9,2191.1,21.28711235]
[1750605990967,4.60799525,2191.9,2191.2,4.56353997]
[1750605991179,0.04561988,2192.2,2191.2,14.76952781]
[1750605991341,0.04561988,2192.2,2191.6,14.76952781]
[1750605991666,0.04561988,2192.2,2191.7,4.56246697]
[1750605991962,0.04561988,2192.2,2191.5,14.76952781]
[1750605992136,0.04561988,2192.3,2191.7,4.56246264]
[1750605992336,0.04561988,2192.3,2191.7,4.56255017]
[1750605992567,4.6070645,2192.3,2191.7,4.56255017]
[1750605992740,4.56164613,2192.2,2191.6,4.56274876]
[1750605992943,4.56235612,2191.9,2191.1,20.76021908]
[1750605993134,0.04561988,2191.8,2191.0,4.56412596]
[1750605993335,4.60824729,2191.8,2191.2,4.5636704]
[1750605993556,4.60820665,2191.8,2191.0,4.56412596]
[1750605993867,1.4059,2191.5,2190.9,5.01528029]
[1750605994080,1.4059,2191.5,2190.5,4.56514336]
[1750605994081,4.56365376,2191.3,2190.5,4.56514336]
[1750605994250,0.04561988,2191.2,2190.3,4.56558462]
[1750605994744,0.04561988,2191.2,1963.2,0.05]
[1750605994745,1.4059,2190.5,2189.8,1.82646525]
[1750605994947,0.04561988,2190.4,2190.1,4.56596881]
[1750605995148,1.45151988,2190.5,2189.6,1.4268]
[1750605995350,1.45151988,2190.5,2189.9,4.56629702]
[1750605995554,1.45151988,2190.5,2190.1,4.56599317]
[1750605995877,1.3305,2190.5,2189.9,5.02436567]
[1750605996050,1.3305,2190.5,2189.9,0.4580979]
[1750605996373,1.3305,2190.5,2189.9,4.5662686]
[1750605996588,1.3305,2190.5,2190.0,4.56620917]
[1750605996774,1.3305,2190.5,2190.1,4.56598947]
[1750605996975,1.3305,2190.5,2190.2,0.04565551]
[1750605997174,1.3305,2190.5,2190.0,4.56621004]
[1750605997375,1.3305,2190.5,2189.8,14.76952781]
[1750605997677,5.9413296,2190.5,2189.9,4.56628675]
[1750605997974,1.3305,2190.5,2190.1,4.56582344]
[1750605998183,1.3305,2190.5,2189.9,14.76952781]
[1750605998381,12.058,2191.0,2190.0,10.0]
[1750605998677,0.04561988,2190.9,2190.3,4.56545758]
[1750605998977,1.495,2190.8,2190.0,10.0]
[1750605999183,1.495,2190.8,2190.1,7.49959357]
[1750605999474,1.495,2190.8,2190.3,4.56558263]
[1750605999647,1.495,2190.8,2190.3,4.56557444]
[1750605999848,1.495,2190.8,2190.1,2.93359202]
[1750606000166,1.495,2190.8,2190.5,4.56514445]
[1750606000374,4.56380579,2191.2,2190.5,0.91306453]
[1750606000375,1.4114,2191.2,2190.5,0.91306453]
[1750606000572,0.45270797,2191.9,2191.4,4.56318956]
[1750606000573,1.4114,2191.6,2191.4,4.56318956]
[1750606000772,1.4114,2191.6,2191.1,4.56391766]
[1750606000970,1.4114,2191.6,2191.4,4.56327764]
[1750606001369,1.4114,2191.6,2191.2,4.563564]
[1750606001370,1.4114,2191.6,2191.3,4.56340231]
[1750606001592,1.4114,2191.6,2191.4,4.56315909]
[1750606001760,1.4114,2191.9,2191.6,4.56269989]
[1750606001958,1.4114,2191.9,2191.7,4.56262763]
[1750606002160,1.4114,2191.9,2191.6,4.56278158]
[1750606002359,1.4114,2191.9,2191.5,4.56305497]
[1750606002684,1.4114,2191.9,2191.6,4.56277296]
[1750606002986,1.45701988,2191.9,2191.5,4.56298494]
[1750606003176,1.45701988,2191.9,2191.1,19.33340392]
[1750606003480,1.4114,2191.9,2191.5,4.56298958]
[1750606004046,1.4114,2191.9,2191.1,14.76952781]
[1750606004047,0.04561988,2191.8,2191.6,4.5628629]
[1750606004280,0.04561988,2191.8,2191.4,4.5632146]
[1750606004281,1.4114,2191.9,2191.4,4.56310827]
[1750606004506,1.4114,2191.9,2191.1,14.76952781]
[1750606004688,1.4114,2191.9,2191.8,4.56246007]
[1750606004856,1.4114,2192.8,2192.7,4.5605874]
[1750606005054,6.33769284,2193.7,2192.7,0.4672991]
[1750606005055,1.4114,2193.2,2192.7,0.4672991]
[1750606005276,2.94761988,2193.6,2193.0,4.55983146]
[1750606005483,5.75762237,2193.5,2192.7,4.56040348]
[1750606005666,0.04561988,2193.4,2192.9,4.560055]
[1750606005871,0.04561988,2193.4,2192.9,0.04559864]
[1750606006159,4.55844019,2193.8,2192.9,14.81512645]
[1750606006485,0.04561988,2193.8,2193.2,4.55952077]
[1750606006685,0.04561988,2193.8,2192.8,4.56035658]
[1750606006890,9.07461988,2193.8,2193.5,4.5589072]
[1750606007055,9.029,2193.8,2193.3,4.55922972]
[1750606007257,9.029,2193.8,2192.9,0.50273816]
[1750606007258,10.966,2194.1,2193.5,5.0263619]
[1750606007597,9.06461988,2194.0,2193.5,4.55882101]
[1750606007778,9.019,2194.0,2193.5,4.55883238]
[1750606008003,0.04561988,2193.9,2193.6,4.55869263]
[1750606008200,0.04561988,2193.9,2193.4,4.55907552]
[1750606008201,9.06061988,2193.9,2193.2,4.55948049]
[1750606008392,9.015,2193.9,2193.4,4.55895884]
[1750606008778,1.4871,2194.0,2193.6,4.55871304]
[1750606008977,8.999,2193.9,2193.7,4.55839588]
[1750606009277,4.5571021,2194.4,2193.4,0.45551499]
[1750606009278,1.4871,2194.9,2193.8,16.30151147]
[1750606009615,4.55747275,2194.2,2193.5,4.5587457]
[1750606009912,0.04561988,2194.1,2193.6,4.55854717]
[1750606010207,1.53271988,2194.1,2193.7,4.5585067]
[1750606010412,1.53271988,2194.1,2193.3,7.4602959]
[1750606010577,1.53271988,2194.1,2193.3,2.901]
[1750606010779,1.53271988,2194.1,2193.3,0.44935101]
[1750606010780,2.99653338,2194.1,2193.3,0.44935101]
[1750606011010,3.04215326,2194.1,2193.2,4.55945665]
[1750606011211,4.55810763,2193.9,2193.2,4.55945665]
[1750606011508,0.04561988,2193.8,2193.4,4.55909251]
[1750606011708,7.55435011,2194.1,2193.3,0.49548506]
[1750606011709,8.982,2193.9,2193.3,0.49548506]
[1750606011899,8.982,2193.9,2193.5,4.55877866]
[1750606012210,4.3871,2194.1,2193.5,0.04558306]
[1750606012509,4.3871,2194.1,2193.3,4.5592975]
[1750606012510,1.4871,2194.1,2193.3,4.5592975]
[1750606012715,1.4871,2194.1,2193.1,0.55]
[1750606012716,0.04561988,2194.0,2193.6,4.55859576]
[1750606012880,0.04561988,2194.0,2193.5,4.55882446]
[1750606013412,0.04561988,2194.0,2193.6,4.55859574]
[1750606013881,0.04561988,2194.0,2193.4,4.55903358]
[1750606014084,0.04561988,2194.0,2193.5,4.55889407]
[1750606014581,0.04561988,2194.0,2193.1,10.0]
[1750606014777,13.86,2194.8,2193.6,14.76952781]
[1750606014976,9.01061988,2194.7,2193.2,1.29]
[1750606015201,4.55772143,2194.1,2193.4,4.55899936]
[1750606015413,4.55772143,2194.1,2193.5,4.55892211]
[1750606015414,9.01261988,2194.0,2193.5,4.55892211]
[1750606015614,0.04561988,2193.9,2193.5,5.01758326]
[1750606015800,0.04561988,2193.9,2193.5,0.45866115]
[1750606016002,0.04561988,2193.9,2193.0,11.3749]
[1750606016300,0.04561988,2193.9,2193.1,2.6647166]
[1750606016504,0.04561988,2193.9,2193.0,4.55984656]
[1750606016701,0.04561988,2193.9,2192.9,0.50273816]
[1750606016920,8.95,2193.8,2192.9,0.50273816]
[1750606017108,0.04561988,2193.7,2192.9,0.50273816]
[1750606017317,8.99361988,2193.7,2192.9,0.50273816]
[1750606017489,8.99361988,2193.7,2193.0,0.50629215]
[1750606017490,8.948,2193.7,2193.0,0.50629215]
[1750606017690,8.944,2193.7,2193.0,19.83576431]
[1750606018016,8.944,2193.7,2193.4,4.55893129]
[1750606018416,8.944,2193.7,2193.3,4.55925287]
[1750606018612,8.944,2193.7,2193.2,4.55951068]
[1750606018816,8.944,2193.7,2193.0,15.27581996]
[1750606018817,0.04561988,2193.6,2193.1,4.5596792]
[1750606018987,0.04561988,2193.6,2193.3,4.55922713]
[1750606019384,0.04561988,2193.6,2193.2,4.55944676]
[1750606019627,0.04561988,2193.6,2192.9,0.94876576]
[1750606019841,0.04561988,2193.6,2193.0,4.55992239]
[1750606020041,0.04561988,2193.6,2193.1,4.55972793]
[1750606020590,0.04561988,2193.6,2192.9,0.94876576]
[1750606020591,1.4983,2193.5,2192.9,0.4460276]
[1750606020856,1.4983,2193.3,2192.4,4.56107167]
[1750606021122,16.4141952,2193.2,2192.6,4.56076256]
[1750606021322,0.04561988,2193.1,2191.9,15.95921269]
[1750606021535,1.4983,2192.9,2192.0,3.07287405]
[1750606021816,1.4983,2192.4,2191.4,5.93378985]
[1750606022140,1.4983,2192.4,2191.3,2.899]
[1750606022141,8.909,2192.3,2192.0,4.5619374]
[1750606022290,0.04561988,2192.2,2191.8,4.56234766]
[1750606022493,0.04561988,2192.2,2191.5,4.56300826]
[1750606022689,1.4983,2192.4,2192.1,4.56183568]
[1750606022914,8.908,2192.3,2191.6,0.91263011]
[1750606023096,8.908,2192.3,2191.7,4.56266824]